bitfinex-derivatives/quotes_BNBF0:USTF0_20250326
["timestamp","ask_amount","ask_price","bid_price","bid_amount"]
[1742992921824,0.428,629.37,628.98,1.18978532]
[1742992922624,0.428,629.37,628.92,1.18978532]
[1742992922833,0.428,629.37,628.93,0.26418364]
[1742992923124,1.015,629.36,628.93,0.26418364]
[1742992923330,1.015,629.36,628.92,1.18978532]
[1742992923528,1.015,629.36,628.93,0.26418751]
[1742992925226,1.015,629.36,628.94,0.26418751]
[1742992925422,1.015,629.36,628.95,0.26418751]
[1742992925626,1.015,629.36,628.96,0.26418751]
[1742992925923,1.015,629.36,628.97,0.26418751]
[1742992926127,1.015,629.36,628.98,0.26418751]
[1742992926328,1.015,629.36,628.99,0.26418751]
[1742992926528,1.015,629.36,628.85,0.26418751]
[1742992926730,1.015,629.36,628.86,0.26418751]
[1742992926931,1.015,629.36,628.85,0.26418751]
[1742992927132,1.015,629.36,628.86,0.26418751]
[1742992927333,1.015,629.36,628.85,0.26418751]
[1742992927631,1.015,629.36,628.86,0.26418751]
[1742992927825,1.015,629.36,628.85,0.26418751]
[1742992928029,1.015,629.36,628.86,0.26418751]
[1742992928230,1.015,629.36,628.87,0.2641867]
[1742992928430,1.015,629.36,628.85,0.2641867]
[1742992928631,1.015,629.36,628.96,1.18978532]
[1742992928827,1.015,629.36,628.97,0.2641867]
[1742992931230,1.015,629.36,629.05,1.18978532]
[1742992931430,1.015,629.36,629.06,0.26418475]
[1742992932937,1.015,629.36,629.05,1.18978532]
[1742992933432,1.015,629.36,628.96,1.18978532]
[1742992933634,1.015,629.36,628.97,0.26418662]
[1742992936043,1.015,629.36,628.98,0.26418662]
[1742992936233,1.015,629.36,628.99,0.26418662]
[1742992936434,1.015,629.36,628.95,0.26418662]
[1742992936637,1.015,629.36,628.96,0.26418662]
[1742992936838,1.015,629.36,628.95,0.26418662]
[1742992937839,1.015,629.36,628.94,1.18978532]
[1742992938040,1.015,629.36,628.96,1.18978532]
[1742992938240,1.015,629.36,628.97,0.26418444]
[1742992939540,1.015,629.36,628.96,1.18978532]
[1742992939837,1.015,629.36,628.97,0.26418407]
[1742992940238,1.015,629.36,629.02,1.18978532]
[1742992940443,1.015,629.36,629.03,0.26418407]
[1742992942944,1.015,629.36,629.04,1.18978532]
[1742992943143,1.015,629.36,629.05,0.26418407]
[1742992944343,0.515,629.35,629.05,0.26418407]
[1742992945339,0.515,629.35,629.04,1.18978532]
[1742992946540,0.515,629.35,629.07,1.18978532]
[1742992948345,0.515,629.35,628.8,1.67975565]
[1742992948346,0.515,629.35,628.99,1.18978532]
[1742992948545,0.515,629.35,629.0,0.2641859]
[1742992949146,0.515,629.35,628.99,1.18978532]
[1742992949339,0.515,629.35,629.0,0.26418583]
[1742992949746,1.465,629.34,629.0,0.26418583]
[1742992953450,1.465,629.34,629.06,1.18978532]
[1742992953644,1.465,629.34,629.07,0.26418583]
[1742992958950,1.465,629.34,629.06,1.18978532]
[1742992960455,1.465,629.34,628.91,1.18978532]
[1742992960753,1.465,629.34,628.92,0.26418737]
[1742992962754,1.465,629.34,628.91,0.26418737]
[1742992963055,1.465,629.34,628.92,0.26418737]
[1742992963255,1.465,629.34,628.9,1.18978532]
[1742992963458,1.465,629.34,628.91,0.26418947]
[1742992963651,1.037,629.34,628.91,0.26418947]
[1742992964453,1.037,629.34,628.92,1.18978532]
[1742992964652,1.037,629.34,628.93,0.26418947]
[1742992966760,0.27653395,629.68,628.93,0.26418947]
[1742992966963,1.21710245,629.67,629.12,1.18978532]
[1742992967155,2.1208242,629.66,629.13,0.26418947]
[1742992967360,2.1208242,629.65,629.13,0.26418947]
[1742992967561,2.1208242,629.64,629.13,0.26418947]
[1742992967763,1.21710245,629.63,629.13,0.26418947]
[1742992967963,1.21710245,629.62,629.13,0.26418947]
[1742992968164,2.1208242,629.61,629.13,0.26418947]
[1742992968364,1.21710245,629.6,629.13,0.26418947]
[1742992968563,1.21710245,629.59,629.13,0.26418947]
[1742992968755,1.21710245,629.58,629.13,0.26418947]
[1742992968961,1.21710245,629.57,629.13,0.26418947]
[1742992969162,1.21710245,629.56,629.13,0.26418947]
[1742992969457,0.90372175,629.57,629.13,0.26418947]
[1742992969458,1.21710245,629.55,629.13,0.26418947]
[1742992969662,1.21710245,629.54,629.14,0.26417364]
[1742992969863,1.21710245,629.53,629.13,0.26417364]
[1742992970166,1.21710245,629.52,629.14,0.26417364]
[1742992970366,1.21710245,629.51,629.13,0.26417364]
[1742992970563,1.21710245,629.5,629.14,0.26417364]
[1742992970765,1.21710245,629.49,629.13,0.26417364]
[1742992971065,1.21719351,629.48,629.18,1.18978532]
[1742992971266,1.21719351,629.47,629.18,1.18978532]
[1742992971470,0.90372175,629.48,629.18,1.18978532]
[1742992971665,1.21717054,629.47,629.18,1.18978532]
[1742992971866,0.882,629.52,629.18,1.18978532]
[1742992972167,2.12098367,629.51,629.18,1.18978532]
[1742992972367,1.21715973,629.5,629.18,1.18978532]
[1742992972566,1.21715973,629.49,629.19,0.26417222]
[1742992972765,2.12098367,629.48,629.19,0.26417222]
[1742992972966,1.21715973,629.47,629.19,0.26417222]
[1742992973166,0.90382394,629.48,629.19,0.26417222]
[1742992973367,1.217124,629.47,629.19,0.26417222]
[1742992973561,0.882,629.52,629.19,0.26417222]
[1742992973769,1.21712401,629.51,629.19,0.26417222]
[1742992973965,1.21712401,629.5,629.18,1.18978532]
[1742992974162,1.21712401,629.49,629.18,1.18978532]
[1742992974365,1.21712401,629.48,629.18,1.18978532]
[1742992974562,1.21712401,629.47,629.18,1.18978532]
[1742992974769,0.90381956,629.48,629.18,1.18978532]
[1742992975068,1.21708572,629.47,629.18,1.18978532]
[1742992975269,0.882,629.52,629.18,1.18978532]
[1742992975470,1.21705084,629.51,629.18,1.18978532]
[1742992975768,1.21705084,629.5,629.19,0.2641724]
[1742992975970,1.21705084,629.49,629.17,1.18978532]
[1742992976163,1.21705084,629.48,629.18,0.26417256]
[1742992976366,1.21705084,629.47,629.18,0.26417256]
[1742992976566,0.882,629.52,629.18,0.26417256]
[1742992976770,1.2174967,629.51,629.18,0.26417256]
[1742992976970,2.12128923,629.5,629.18,0.26417256]
[1742992977170,1.2174967,629.49,629.18,0.26417256]
[1742992977371,2.12128923,629.48,629.18,0.26417256]
[1742992977573,1.2174967,629.47,629.17,1.18978532]
[1742992977767,0.882,629.52,629.18,0.26417258]
[1742992977973,1.21746892,629.51,629.17,1.18978532]
[1742992978173,2.12141086,629.5,629.1,1.18978532]
[1742992978377,1.21746892,629.49,629.11,0.26417168]
[1742992978576,1.21746251,629.48,629.11,0.26417168]
[1742992978777,1.21746251,629.47,629.11,0.26417168]
[1742992978977,0.882,629.52,629.11,0.26417168]
[1742992979179,1.21745201,629.51,629.11,0.26417168]
[1742992979380,1.21745201,629.5,629.11,0.26417168]
[1742992979678,1.21745201,629.49,629.11,0.26417168]
[1742992979879,1.21745201,629.48,629.11,0.26417168]
[1742992980078,1.21745201,629.47,629.11,0.26417168]
[1742992980277,0.882,629.52,629.11,0.26417168]
[1742992980474,1.21740803,629.51,629.11,0.26417168]
[1742992980673,1.21740803,629.5,629.11,0.26417168]
[1742992980876,1.21740803,629.49,629.11,0.26417168]
[1742992981075,1.21740803,629.48,629.12,0.26417168]
[1742992981276,1.21737151,629.47,629.1,0.26417168]
[1742992981579,0.90392818,629.48,629.1,0.26417168]
[1742992981885,0.882,629.52,629.1,0.26417168]
[1742992982078,1.21738141,629.51,629.1,0.26417168]
[1742992982282,2.12128488,629.5,629.1,0.26417168]
[1742992982480,1.21738141,629.49,629.1,0.26417168]
[1742992982687,1.21738141,629.48,629.11,1.18978532]
[1742992982978,0.882,629.52,629.12,0.26417168]
[1742992983183,1.21733715,629.51,629.12,0.26417168]
[1742992983383,1.21733715,629.5,629.12,0.26417168]
[1742992983582,1.21733715,629.49,629.12,0.26417168]
[1742992983781,1.21733715,629.48,629.12,0.26417168]
[1742992983982,0.882,629.52,629.12,0.26417168]
[1742992984180,1.21733558,629.51,629.12,0.26417168]
[1742992984382,1.21733558,629.5,629.12,0.26417168]
[1742992984583,1.21733558,629.49,629.12,0.26417168]
[1742992984882,0.882,629.52,629.12,0.26417168]
[1742992984883,1.21734233,629.48,629.12,0.26417168]
[1742992985085,0.882,629.52,629.12,0.26417168]
[1742992985285,1.21729539,629.51,629.12,0.26417168]
[1742992985483,1.21729539,629.5,629.12,0.26417168]
[1742992985784,1.21729539,629.49,629.12,0.26417168]
[1742992985985,1.21729539,629.48,629.12,0.26417168]
[1742992986489,0.882,629.52,629.12,0.26417168]
[1742992987086,0.882,629.52,629.13,0.26417092]
[1742992987290,0.882,629.52,629.12,0.26417092]
[1742992987485,0.882,629.52,629.13,0.26417092]
[1742992987786,0.882,629.52,629.11,1.18978532]
[1742992987787,0.882,629.52,629.14,0.26417092]
[1742992988087,0.882,629.52,629.15,0.26417092]
[1742992988288,0.882,629.52,629.34,1.18976457]
[1742992988783,0.882,629.52,629.34,0.62276457]
[1742992990389,0.882,629.52,629.16,1.18978532]
[1742992990581,0.882,629.52,629.17,0.26416772]
[1742992990985,0.428,629.51,629.17,0.26416772]
[1742992991787,0.428,629.51,629.18,0.26417207]
[1742992992081,0.428,629.51,629.19,0.26417207]
[1742992992288,0.428,629.51,629.17,0.26417207]
[1742992992482,0.428,629.51,629.16,1.18978532]
[1742992992788,0.428,629.51,629.17,0.26417109]
[1742992993194,0.428,629.51,629.16,1.18978532]
[1742992993382,0.428,629.51,629.17,0.26416519]
[1742992993586,0.428,629.51,629.09,1.18978532]
[1742992993785,0.428,629.51,629.1,0.26416465]
[1742992995089,0.428,629.51,629.11,0.264169]
[1742992995288,0.428,629.51,629.1,0.264169]
[1742992995487,0.895,629.5,629.11,0.264169]
[1742992995688,0.895,629.5,629.12,0.264169]
[1742992995885,0.895,629.5,629.13,0.264169]
[1742992996085,0.895,629.5,629.1,0.264169]
[1742992996289,0.895,629.5,629.11,0.264169]
[1742992996489,0.895,629.5,629.06,0.264169]
[1742992996683,0.895,629.5,629.07,0.26416881]
[1742992996884,0.895,629.5,629.06,0.26416881]
[1742992997087,0.895,629.5,629.07,0.26416881]
[1742992997284,0.895,629.5,629.05,1.18978532]
[1742992997285,0.895,629.5,629.06,0.26416881]
[1742992997484,0.895,629.5,629.07,0.26416881]
[1742992997790,0.895,629.5,629.08,0.26416881]
[1742992997990,0.895,629.5,629.09,0.26416881]
[1742992998291,0.895,629.5,629.1,0.26416881]
[1742992998486,0.895,629.5,629.06,0.26416881]
[1742992998691,0.895,629.5,629.07,0.26416881]
[1742992998893,0.895,629.5,629.08,0.26416881]
[1742992999086,0.895,629.5,629.02,1.18978532]
[1742992999087,0.895,629.5,629.09,0.26416881]
[1742992999290,0.895,629.5,629.1,0.26416881]
[1742992999494,0.895,629.5,629.03,0.26416881]
[1742992999793,0.895,629.5,629.04,0.26416881]
[1742993000094,0.895,629.5,629.02,1.18978532]
[1742993000595,0.895,629.5,629.03,0.2641711]
[1742993001295,0.895,629.5,628.92,1.18978532]
[1742993001595,0.895,629.5,628.93,0.26417255]
[1742993001794,0.515,629.49,628.93,0.26417255]
[1742993002495,0.515,629.49,628.92,1.18978532]
[1742993003295,0.515,629.49,629.0,1.18978532]
[1742993004895,0.515,629.49,628.9,0.27648122]
[1742993005097,0.515,629.49,628.9,0.5944968]
[1742993005293,0.515,629.49,628.91,0.26412114]
[1742993007597,0.515,629.49,628.96,1.18978532]
[1742993007794,0.515,629.49,628.97,0.26412114]
[1742993009301,0.428,629.48,628.97,0.26412114]
[1742993010002,0.428,629.48,628.98,1.18978532]
[1742993010199,0.428,629.48,628.99,0.26412114]
[1742993012496,0.428,629.48,628.95,0.27644718]
[1742993012699,0.428,629.48,628.96,0.58208052]
[1742993012901,0.923,629.47,628.97,0.58207546]
[1742993013101,0.923,629.47,628.98,0.58207041]
[1742993013297,0.923,629.47,628.99,0.26409528]
[1742993014107,0.923,629.47,629.0,0.26410782]
[1742993014308,0.923,629.47,629.01,0.26410782]
[1742993014607,0.923,629.47,629.02,0.26410782]
[1742993014799,0.923,629.47,628.99,0.26410782]
[1742993015000,0.923,629.47,629.0,0.26410782]
[1742993015201,0.923,629.47,629.01,0.26410782]
[1742993015506,0.923,629.47,629.02,0.26410782]
[1742993015807,0.923,629.47,629.03,0.26410666]
[1742993016008,0.923,629.47,629.03,1.18978532]
[1742993016310,0.923,629.47,629.04,0.26410666]
[1742993018809,0.923,629.47,629.06,1.18978532]
[1742993019007,0.923,629.47,629.07,0.26410714]
[1742993021110,0.923,629.47,629.08,0.26410714]
[1742993021304,0.923,629.47,629.04,0.26410714]
[1742993021508,0.923,629.47,629.05,0.26410714]
[1742993021709,0.923,629.47,629.04,0.26410714]
[1742993021909,0.923,629.47,629.03,1.18978532]
[1742993022106,0.923,629.47,629.04,0.26410941]
[1742993023813,0.923,629.47,629.05,0.26410941]
[1742993024012,0.923,629.47,629.06,0.26410941]
[1742993024209,0.923,629.47,629.07,0.26410941]
[1742993024413,0.515,629.46,629.01,0.26410941]
[1742993028213,0.515,629.46,629.02,0.31795491]
[1742993028416,0.515,629.46,629.03,0.26410941]
[1742993028610,0.515,629.46,629.04,0.3179448]
[1742993028810,0.515,629.46,629.05,0.26410941]
[1742993029015,0.515,629.46,629.06,0.31793469]
[1742993029214,0.515,629.46,629.07,0.26410941]
[1742993029412,0.515,629.46,629.08,0.31792458]
[1742993029617,0.515,629.46,629.09,0.26410941]
[1742993029816,0.515,629.46,629.1,0.31791448]
[1742993030012,0.515,629.46,629.11,0.26391197]
[1742993030214,0.515,629.46,629.12,0.31790437]
[1742993030416,0.515,629.46,629.13,0.26391197]
[1742993030622,0.428,629.45,629.14,0.31789426]
[1742993030917,0.428,629.45,629.15,0.26391197]
[1742993031113,0.428,629.45,629.16,0.31788416]
[1742993031313,0.428,629.45,629.17,0.26391197]
[1742993031617,0.428,629.45,629.18,0.31787405]
[1742993031818,0.428,629.45,629.19,0.26391197]
[1742993032014,0.428,629.45,629.2,0.31786395]
[1742993032213,0.428,629.45,629.21,0.26391197]
[1742993032517,0.428,629.45,629.22,0.31785385]
[1742993032726,0.428,629.45,629.23,0.26391197]
[1742993032914,0.428,629.45,629.24,0.31784374]
[1742993033119,0.428,629.45,629.25,0.26391197]
[1742993033315,0.428,629.45,629.26,0.31783364]
[1742993033521,0.428,629.45,629.27,0.26391197]
[1742993033817,0.428,629.45,629.28,0.31782354]
[1742993034117,0.428,629.45,629.29,0.26391197]
[1742993034322,0.428,629.45,629.29,0.58173046]
[1742993034518,0.428,629.45,629.3,0.26391197]
[1742993037616,0.428,629.45,629.3,0.58172541]
[1742993037920,0.428,629.45,629.31,0.26391197]
[1742993040530,0.428,629.45,629.3,0.31781344]
[1742993041225,0.428,629.45,629.31,0.26397895]
[1742993046523,0.428,629.45,629.32,0.26398295]
[1742993046727,0.428,629.45,629.33,0.26398295]
[1742993047023,0.428,629.45,629.34,0.26398295]
[1742993047224,0.428,629.45,629.3,0.31781344]
[1742993047225,0.428,629.45,629.35,0.26398295]
[1742993047424,0.428,629.45,629.31,0.26398295]
[1742993047625,0.428,629.45,629.32,0.26398264]
[1742993047828,0.428,629.45,629.33,0.26398264]
[1742993048029,0.428,629.45,629.31,0.26398264]
[1742993048226,0.428,629.45,629.32,0.26398264]
[1742993048435,0.428,629.45,629.31,0.26398264]
[1742993048635,0.428,629.45,629.32,0.26398264]
[1742993048831,0.428,629.45,629.33,0.26398264]
[1742993049031,0.428,629.45,629.3,0.31781344]
[1742993049230,0.428,629.45,629.34,0.26397863]
[1742993049431,0.428,629.45,629.35,0.26397863]
[1742993049732,0.428,629.45,629.36,0.26397863]
[1742993049938,0.428,629.45,629.37,0.26397863]
[1742993050137,0.428,629.45,629.31,0.26397863]
[1742993050338,0.428,629.45,629.32,0.2639923]
[1742993050637,0.428,629.45,629.31,0.2639923]
[1742993050838,0.428,629.45,629.32,0.2639923]
[1742993051038,0.428,629.45,629.33,0.2639923]
[1742993051337,0.428,629.45,629.34,0.2639923]
[1742993051538,0.428,629.45,629.31,0.2639923]
[1742993051734,0.428,629.45,629.32,0.2639923]
[1742993051938,0.428,629.45,629.33,0.2639923]
[1742993052137,0.428,629.45,629.34,0.2639923]
[1742993052333,0.428,629.45,629.35,0.26397913]
[1742993052537,0.428,629.45,629.36,0.26397913]
[1742993052733,0.909,629.56,629.31,0.26397913]
[1742993052939,0.909,629.56,629.32,0.26397913]
[1742993053139,0.909,629.56,629.31,0.26397913]
[1742993053333,0.909,629.56,629.32,0.26397913]
[1742993053533,0.909,629.56,629.33,0.26397913]
[1742993053739,0.909,629.56,629.3,0.31781344]
[1742993053938,0.909,629.56,629.31,0.26399208]
[1742993054538,0.909,629.56,629.32,0.26399327]
[1742993054739,0.909,629.56,629.31,0.26399327]
[1742993055041,1.423,629.56,629.32,0.26399327]
[1742993055342,1.423,629.56,629.3,0.31781344]
[1742993055343,1.423,629.56,629.33,0.26399327]
[1742993055536,1.423,629.56,629.34,0.26399472]
[1742993055737,1.423,629.56,629.31,0.26399472]
[1742993055935,1.423,629.56,629.32,0.26399472]
[1742993056137,1.423,629.56,629.33,0.26399472]
[1742993056339,0.514,629.56,629.31,0.26399472]
[1742993056541,0.514,629.56,629.32,0.26399472]
[1742993056740,0.514,629.56,629.31,0.26399472]
[1742993056943,0.514,629.56,629.32,0.26399472]
[1742993057139,0.514,629.56,629.33,0.26400202]
[1742993057344,0.514,629.56,629.31,0.26400202]
[1742993057541,0.514,629.56,629.32,0.26400202]
[1742993057848,0.514,629.56,629.33,0.26400202]
[1742993058045,0.514,629.56,629.31,0.26400202]
[1742993058246,0.514,629.56,629.32,0.26400202]
[1742993058546,0.514,629.56,629.33,0.26400202]
[1742993058745,0.514,629.56,629.34,0.26400202]
[1742993058943,0.514,629.56,629.35,0.26400202]
[1742993059142,0.514,629.56,629.31,0.26400202]
[1742993059344,0.514,629.56,629.32,0.26400202]
[1742993059543,0.514,629.56,629.31,0.26400202]
[1742993060343,1.292,629.56,629.32,0.26400029]
[1742993060541,1.292,629.56,629.31,0.26400029]
[1742993060741,1.292,629.56,629.32,0.26400029]
[1742993060942,1.292,629.56,629.33,0.26400029]
[1742993061247,1.292,629.56,629.34,0.26400029]
[1742993061454,1.292,629.56,629.31,0.26400029]
[1742993061645,1.292,629.56,629.32,0.26400029]
[1742993061839,1.292,629.56,629.3,0.31781344]
[1742993061840,1.292,629.56,629.33,0.26400029]
[1742993062040,1.292,629.56,629.31,0.26400029]
[1742993062346,0.778,629.56,629.32,0.26400029]
[1742993062644,0.778,629.56,629.33,0.26400029]
[1742993062840,0.778,629.56,629.34,0.26400029]
[1742993063045,0.778,629.56,629.35,0.26400029]
[1742993063241,0.778,629.56,629.31,0.26400029]
[1742993063444,0.778,629.56,629.32,0.26400029]
[1742993063647,0.778,629.56,629.33,0.26400029]
[1742993063839,0.778,629.56,629.31,0.26400029]
[1742993064042,0.778,629.56,629.32,0.26400029]
[1742993064246,0.778,629.56,629.33,0.26400029]
[1742993064546,0.428,629.58,629.34,0.26400029]
[1742993064742,0.428,629.58,629.31,0.26400029]
[1742993064947,0.428,629.58,629.3,0.31781344]
[1742993065147,0.428,629.58,629.31,0.26401631]
[1742993066743,0.428,629.58,629.3,0.31781344]
[1742993071751,0.428,629.58,629.31,0.26400897]
[1742993073552,0.428,629.58,629.32,1.18978532]
[1742993073851,0.428,629.58,629.33,0.26400897]
[1742993075948,0.428,629.58,629.47,1.18978532]
[1742993076152,0.428,629.58,629.48,0.26400897]
[1742993076351,1.438,630.03,629.48,0.26400897]
[1742993078250,1.438,630.03,629.5,1.18978532]
[1742993078455,1.438,630.03,629.51,0.26400897]
[1742993078853,1.438,630.03,629.5,1.18978532]
[1742993079256,0.427,630.02,629.5,1.18978532]
[1742993081656,0.427,630.02,629.33,1.18978532]
[1742993081857,0.427,630.02,629.34,0.26400228]
[1742993082356,0.427,630.02,629.33,1.18978532]
[1742993082656,0.427,630.02,629.34,0.26400194]
[1742993083661,0.517,630.01,629.34,0.26400194]
[1742993083860,0.517,630.01,629.31,0.26400194]
[1742993085469,0.517,630.01,629.4,1.18978532]
[1742993085669,0.517,630.01,629.41,0.26400194]
[1742993085972,1.21548523,630.0,629.41,0.26400194]
[1742993086167,1.21548523,629.99,629.41,0.26400194]
[1742993086364,1.21548523,629.98,629.41,0.26400194]
[1742993086565,1.21548523,629.97,629.41,0.26400194]
[1742993086766,1.21548523,629.96,629.41,0.26400194]
[1742993086968,1.21548523,629.95,629.41,0.26400194]
[1742993087167,1.21548523,629.94,629.42,0.26400265]
[1742993087368,1.21548523,629.93,629.43,0.26400265]
[1742993087581,2.11475806,629.92,629.41,0.26400265]
[1742993087774,0.89927283,629.92,629.42,0.26400265]
[1742993088072,0.517,630.01,629.43,0.26400265]
[1742993088275,1.21646863,630.0,629.41,0.26400265]
[1742993088473,1.21646863,629.99,629.42,0.26400265]
[1742993088671,1.21646863,629.98,629.41,0.26400265]
[1742993088875,1.21646863,629.97,629.42,0.26400265]
[1742993089076,1.21646863,629.96,629.41,0.26400265]
[1742993089271,0.517,630.01,629.3,1.48717767]
[1742993089272,1.21646863,629.95,629.42,1.45378797]
[1742993089477,2.11961531,629.94,629.43,0.26400265]
[1742993089675,1.21646863,629.93,629.43,0.26400265]
[1742993089877,0.90314668,629.94,629.43,0.26400265]
[1742993090277,0.90314668,629.93,629.43,0.26400265]
[1742993090976,0.517,630.01,629.43,0.26400265]
[1742993091172,1.21690111,630.0,629.43,0.26400265]
[1742993091374,1.21690111,629.99,629.43,0.26400265]
[1742993091577,1.21690111,629.98,629.43,0.26400265]
[1742993091773,1.21690111,629.97,629.43,0.26400265]
[1742993091979,1.21690111,629.96,629.44,1.18978532]
[1742993092178,1.21690111,629.95,629.45,0.26400265]
[1742993092376,1.21690111,629.94,629.45,0.26400265]
[1742993092590,0.90350402,629.97,629.45,0.26400265]
[1742993092777,1.2172758,629.96,629.45,0.26400265]
[1742993092970,1.2172758,629.95,629.45,0.26400265]
[1742993093274,2.12113107,629.94,629.45,0.26400265]
[1742993093480,0.90385527,629.94,629.44,1.18978532]
[1742993093679,0.90385527,629.94,629.45,0.26399416]
[1742993093878,1.2174971,629.93,629.44,1.18978532]
[1742993094074,1.2174971,629.93,629.3,0.59411027]
[1742993094075,0.517,630.01,629.46,1.18978532]
[1742993094276,1.21768641,630.0,629.46,1.18978532]
[1742993094487,1.21768641,629.99,629.46,1.18978532]
[1742993094679,1.21768641,629.98,629.46,1.18978532]
[1742993094982,1.21768641,629.97,629.46,1.18978532]
[1742993095174,1.21768641,629.96,629.46,1.18978532]
[1742993095378,1.21768641,629.95,629.46,1.18978532]
[1742993095680,1.21768641,629.94,629.46,1.18978532]
[1742993095880,1.21768641,629.93,629.46,1.18978532]
[1742993096179,1.21816523,629.92,629.46,1.18978532]
[1742993096375,0.90402405,629.93,629.46,1.18978532]
[1742993096376,1.21816523,629.91,629.46,1.18978532]
[1742993096581,1.21816523,629.91,629.3,0.31781344]
[1742993096582,0.90402405,629.93,629.3,0.31781344]
[1742993096883,1.21820745,629.92,629.31,0.26399417]
[1742993097175,1.21820745,629.91,629.31,0.26399417]
[1742993097381,0.9045918,629.91,629.31,0.26399417]
[1742993098178,2.12310092,629.9,629.31,0.26399417]
[1742993098382,1.21850912,629.89,629.31,0.26399417]
[1742993098682,1.21850912,629.88,629.31,0.26399417]
[1742993098980,1.21850912,629.87,629.31,0.26399417]
[1742993099177,1.21850912,629.86,629.31,0.26399417]
[1742993099486,1.21850912,629.85,629.31,0.26399417]
[1742993099781,0.517,630.01,629.31,0.26399417]
[1742993099983,1.21919191,630.0,629.31,0.26399417]
[1742993100178,2.12431508,629.99,629.31,0.26399417]
[1742993100377,1.21919191,629.98,629.31,0.26399417]
[1742993100581,1.21919191,629.97,629.41,1.18978532]
[1742993100884,1.21919191,629.96,629.42,0.26399417]
[1742993101084,1.21919191,629.95,629.42,0.26399417]
[1742993101382,2.12431508,629.94,629.42,0.26399417]
[1742993101579,2.12431508,629.93,629.42,0.26399417]
[1742993101779,1.21919191,629.92,629.42,0.26399417]
[1742993101985,1.21919191,629.91,629.42,0.26399417]
[1742993102183,2.12431508,629.9,629.42,0.26399417]
[1742993102379,1.21919191,629.89,629.42,0.26399417]
[1742993102583,2.12431508,629.88,629.42,0.26399417]
[1742993102782,1.21919191,629.87,629.42,0.26399417]
[1742993102982,2.12431508,629.86,629.42,0.26399417]
[1742993103179,1.21919191,629.85,629.42,0.26399417]
[1742993103482,2.12431508,629.84,629.43,0.26399417]
[1742993103680,0.90512317,629.84,629.34,0.26399417]
[1742993103986,0.517,630.01,629.34,0.26399417]
[1742993104182,1.21950343,630.0,629.34,0.26399417]
[1742993104387,1.21950343,629.99,629.34,0.26399417]
[1742993104583,2.12503175,629.98,629.34,0.26399417]
[1742993104781,1.21950343,629.97,629.34,0.26399417]
[1742993105086,2.12503175,629.96,629.34,0.26399417]
[1742993105286,1.21950343,629.95,629.34,1.45377949]
[1742993105479,2.12503175,629.94,629.35,0.26399417]
[1742993105683,1.21950343,629.93,629.35,0.26399417]
[1742993105884,0.90552832,629.94,629.35,0.26399417]
[1742993105885,2.12503175,629.92,629.35,0.26399417]
[1742993106080,1.21950343,629.91,629.35,0.26399417]
[1742993106285,0.517,630.01,629.36,0.26399268]
[1742993106482,1.21999315,630.0,629.35,0.26399268]
[1742993106787,1.21999315,629.99,629.36,0.26399268]
[1742993106982,1.21999315,629.99,629.46,1.18978532]
[1742993106983,1.21999315,629.98,629.46,1.18978532]
[1742993107184,1.21999315,629.97,629.47,0.26399268]
[1742993107384,2.12569596,629.96,629.47,0.26399268]
[1742993107584,1.21999315,629.95,629.47,0.26399268]
[1742993107785,1.21999315,629.94,629.47,0.26399268]
[1742993107984,0.90570281,629.96,629.47,0.26399268]
[1742993107985,1.21999315,629.93,629.47,0.26399268]
[1742993108188,1.21999315,629.92,629.47,0.26399268]
[1742993108380,1.21999315,629.91,629.47,0.26399268]
[1742993108586,1.21999315,629.9,629.47,0.26399268]
[1742993108787,1.21999315,629.89,629.47,0.26399268]
[1742993108986,0.90570281,629.91,629.47,0.26399268]
[1742993109189,1.22008027,629.9,629.47,0.26399268]
[1742993109490,2.12586662,629.89,629.47,0.26399268]
[1742993109687,1.22008027,629.88,629.47,0.26399268]
[1742993109888,1.22008027,629.87,629.68,1.18947225]
[1742993110087,1.22008027,629.86,629.68,1.18947225]
[1742993110285,0.90578635,629.88,629.68,1.18947225]
[1742993110589,2.12583807,629.87,629.68,1.18947225]
[1742993110790,1.22005172,629.86,629.68,1.18947225]